bitfinex/quotes_BTCUSD_20241120
["timestamp","ask_amount","ask_price","bid_price","bid_amount"]
[1732108885082,0.10711512,94228.0,94205.0,0.0796]
[1732108885331,0.106147,94209.0,94205.0,0.0796]
[1732108885585,0.1,94227.0,94205.0,0.0796]
[1732108885809,0.184613,94220.0,94194.0,0.0498]
[1732108886035,0.106143,94212.0,94202.0,0.106154]
[1732108886290,0.01962857,94224.0,94204.0,0.212304]
[1732108886511,0.01962857,94227.0,94226.0,0.106127]
[1732108886740,0.04300501,94239.0,94226.0,0.106127]
[1732108886741,0.106117,94235.0,94226.0,0.0774]
[1732108886978,0.10711512,94234.0,94199.0,0.01]
[1732108887193,0.10711512,94234.0,94193.0,0.186613]
[1732108887194,0.212242,94232.0,94214.0,0.106141]
[1732108887410,0.01,94259.0,94212.0,0.0774]
[1732108887411,0.01962857,94231.0,94228.0,0.106125]
[1732108887629,0.01962857,94231.0,94212.0,0.0774]
[1732108887630,0.01962857,94230.0,94212.0,0.0774]
[1732108887845,0.106131,94223.0,94217.0,0.106137]
[1732108888064,0.01962857,94222.0,94217.0,0.106137]
[1732108888281,0.62399819,94282.0,94212.0,0.0774]
[1732108888282,0.01,94285.0,94222.0,0.1]
[1732108888495,0.106089,94261.0,94231.0,0.01]
[1732108888704,0.05120412,94260.0,94233.0,0.106119]
[1732108888948,0.05120412,94260.0,94232.0,0.30653512]
[1732108888949,0.05120412,94259.0,94253.0,0.106096]
[1732108889177,0.05120412,94258.0,94253.0,0.106096]
[1732108889394,0.04211788,94261.0,94254.0,0.106096]
[1732108889395,0.05120412,94257.0,94254.0,0.106096]
[1732108889641,0.106088,94261.0,94253.0,0.106096]
[1732108889642,0.05120412,94256.0,94253.0,0.106096]
[1732108889930,0.01969438,94256.0,94253.0,0.106096]
[1732108890168,0.212167,94266.0,94253.0,0.212192]
[1732108890169,0.01969438,94255.0,94253.0,0.212192]
[1732108890396,0.01969438,94254.0,94247.0,0.106103]
[1732108890635,0.05129173,94253.0,94252.0,0.212195]
[1732108890858,0.05129173,94253.0,94252.0,0.151397]
[1732108892842,0.00629173,94253.0,94252.0,0.151397]
[1732108893054,0.00629173,94253.0,94252.0,0.0453]
[1732108893474,0.106093,94257.0,94250.0,0.1061]
[1732108893726,0.04381896,94266.0,94237.0,0.0495]
[1732108893947,0.106098,94253.0,94241.0,0.10611]
[1732108894154,0.318255,94264.0,94245.0,0.106106]
[1732108894392,0.106098,94253.0,94245.0,0.106106]
[1732108894617,0.10711512,94263.0,94237.0,0.0495]
[1732108895068,0.212198,94252.0,94212.0,0.01]
[1732108895282,0.212198,94252.0,94208.0,0.106147]
[1732108895283,0.212203,94249.0,94229.0,0.106124]
[1732108895520,0.212203,94249.0,94221.0,0.0483]
[1732108895521,0.106126,94228.0,94222.0,0.106132]
[1732108895744,0.106135,94220.0,94213.0,0.182042]
[1732108895970,0.184613,94238.0,94213.0,0.182042]
[1732108896205,0.184613,94238.0,94213.0,0.0759]
[1732108896206,0.212272,94219.0,94213.0,0.0759]
[1732108896416,0.106134,94220.0,94213.0,0.182042]
[1732108896626,0.10711512,94237.0,94213.0,0.0759]
[1732108896850,0.212258,94225.0,94213.0,0.0759]
[1732108897066,0.13257702,94237.0,94213.0,0.182041]
[1732108897279,0.212267,94221.0,94213.0,0.0759]
[1732108897498,0.106116,94236.0,94216.0,0.106138]
[1732108897754,0.106125,94228.0,94221.0,0.106132]
[1732108897960,0.1115,94254.0,94213.0,0.18301512]
[1732108897961,0.123,94252.0,94213.0,0.18301512]
[1732108898175,0.03292337,94251.0,94214.0,0.10711512]
[1732108898400,0.106124,94229.0,94214.0,0.10711512]
[1732108898615,0.184613,94247.0,94213.0,0.182042]
[1732108898831,0.10711512,94246.0,94219.0,0.106135]
[1732108899078,0.10711512,94246.0,94213.0,0.182042]
[1732108899288,0.10711512,94246.0,94214.0,0.10711512]
[1732108899506,0.261,94256.0,94214.0,0.10711512]
[1732108899507,0.04351021,94251.0,94214.0,0.10711512]
[1732108899714,0.03291993,94250.0,94235.0,0.106116]
[1732108899927,0.10711512,94254.0,94214.0,0.21325612]
[1732108900149,0.261,94256.0,94214.0,0.21325612]
[1732108900150,0.212219,94243.0,94214.0,0.10711512]
[1732108900366,0.106121,94232.0,94227.0,0.106126]
[1732108900572,0.10612,94233.0,94214.0,0.10711512]
[1732108900793,0.184613,94248.0,94214.0,0.10711512]
[1732108900794,0.106116,94236.0,94231.0,0.106121]
[1732108901010,0.212224,94240.0,94226.0,0.106127]
[1732108901226,0.212224,94240.0,94233.0,0.106119]
[1732108901227,0.106115,94238.0,94233.0,0.106119]
[1732108901454,0.106115,94238.0,94221.0,0.106132]
[1732108901670,0.106116,94237.0,94221.0,0.106132]
[1732108901909,0.212192,94254.0,94222.0,0.16559962]
[1732108902129,0.184613,94250.0,94222.0,0.0477]
[1732108902364,0.106124,94229.0,94222.0,0.0477]
[1732108902572,0.106122,94231.0,94222.0,0.0477]
[1732108902802,0.106127,94227.0,94222.0,0.0477]
[1732108903014,0.212224,94240.0,94222.0,0.0477]
[1732108903242,0.106131,94223.0,94222.0,0.0477]
[1732108903468,0.106134,94220.0,94219.0,0.001713]
[1732108903907,0.290747,94220.0,94219.0,0.001713]
[1732108904123,0.53082538,94220.0,94219.0,0.001713]
[1732108904342,0.53082538,94220.0,94202.0,0.0017128]
[1732108904343,0.106153,94203.0,94202.0,0.0017128]
[1732108904822,0.12593349,94203.0,94202.0,0.0017128]
[1732108905035,0.15889314,94203.0,94202.0,0.0017128]
[1732108905307,0.26600826,94203.0,94202.0,0.0017128]
[1732108905521,0.26600826,94203.0,94170.0,0.0458]
[1732108905522,0.184613,94198.0,94170.0,0.0458]
[1732108905731,0.106184,94176.0,94170.0,0.0458]
[1732108905943,0.12596449,94176.0,94170.0,0.0458]
[1732108908182,0.212325,94195.0,94175.0,0.0017106]
[1732108908449,0.1,94198.0,94175.0,0.0017106]
[1732108908706,0.106184,94176.0,94175.0,0.0017106]
[1732108908952,0.106184,94176.0,94175.0,0.00093053]
[1732108909694,0.21329912,94176.0,94175.0,0.00093053]
[1732108909923,0.290812,94162.0,94161.0,0.0017106]
[1732108910887,0.106199,94162.0,94161.0,0.0017106]
[1732108911353,0.1,94188.0,94161.0,0.0017106]
[1732108911576,0.1,94185.0,94161.0,0.0017106]
[1732108911857,0.10711512,94184.0,94161.0,0.0017106]
[1732108912090,0.106199,94162.0,94161.0,0.0017106]
[1732108912619,0.29022812,94162.0,94138.0,0.0817]
[1732108912853,0.106229,94136.0,94125.0,0.0817]
[1732108913105,0.184613,94152.0,94125.0,0.0817]
[1732108913324,0.106232,94133.0,94127.0,0.00851216]
[1732108913596,0.1,94151.0,94126.0,0.1079498]
[1732108913816,0.184613,94152.0,94126.0,0.0017108]
[1732108913817,0.212431,94148.0,94126.0,0.0017108]
[1732108914073,0.1,94149.0,94126.0,0.0017108]
[1732108914074,0.106239,94127.0,94126.0,0.0017108]
[1732108916697,0.106239,94127.0,94124.0,0.0017108]
[1732108916698,0.106241,94125.0,94124.0,0.0017108]
[1732108917003,0.21248,94127.0,94124.0,0.0017108]
[1732108917004,0.04291334,94127.0,94126.0,0.10624]
[1732108917469,0.212437,94146.0,94133.0,0.106231]
[1732108917717,0.212437,94146.0,94124.0,0.0017108]
[1732108917718,0.10622,94144.0,94134.0,0.106231]
[1732108917937,0.04248674,94146.0,94124.0,0.10882592]
[1732108918162,0.2615,94167.0,94135.0,0.106229]
[1732108918163,0.21241,94158.0,94135.0,0.106229]
[1732108918404,0.106223,94142.0,94135.0,0.106229]
[1732108918628,0.106223,94142.0,94124.0,0.0017108]
[1732108918629,0.10624,94126.0,94124.0,0.0017108]
[1732108918884,0.10711512,94142.0,94124.0,0.0017108]
[1732108919140,0.106236,94130.0,94124.0,0.0017108]
[1732108919391,0.2833212,94125.0,94087.0,0.001205]
[1732108919668,0.106255,94113.0,94105.0,0.106264]
[1732108919908,0.1,94135.0,94095.0,0.002]
[1732108919909,0.11959524,94135.0,94106.0,0.0894264]
[1732108920152,0.5399,94148.0,94106.0,0.0894264]
[1732108920153,0.01959524,94146.0,94124.0,0.106242]
[1732108920402,0.212469,94132.0,94119.0,0.0466]
[1732108920667,0.01959524,94156.0,94119.0,0.0466]
[1732108920668,0.1,94155.0,94127.0,0.106238]
[1732108920906,0.1,94155.0,94129.0,0.106236]
[1732108920907,0.10623,94135.0,94129.0,0.106236]
[1732108921132,0.02,94147.0,94130.0,0.10372818]
[1732108921376,0.02,94147.0,94134.0,0.10623]
[1732108921377,0.01959524,94146.0,94134.0,0.10623]
[1732108921597,0.11959524,94153.0,94125.0,0.212481]
[1732108921811,0.11959524,94153.0,94121.0,0.01537151]
[1732108921812,0.1,94151.0,94121.0,0.01537151]
[1732108922072,0.212431,94148.0,94122.0,0.01231337]
[1732108922326,0.106214,94149.0,94143.0,0.10622]
[1732108922589,0.01959524,94150.0,94145.0,0.106218]
[1732108922818,0.0184312,94153.0,94126.0,0.01537151]
[1732108923043,0.2833212,94174.0,94148.0,0.106215]
[1732108923290,0.212379,94171.0,94132.0,0.002]
[1732108923513,0.212379,94171.0,94128.0,0.01]
[1732108923514,0.212386,94168.0,94134.0,0.106231]
[1732108923748,0.10711512,94167.0,94137.0,0.002]
[1732108923992,0.10711512,94167.0,94045.0,0.13830176]
[1732108923993,0.10621,94153.0,94130.0,0.212472]
[1732108924216,0.106211,94152.0,94146.0,0.106217]
[1732108924438,0.212411,94157.0,94146.0,0.106217]
[1732108924731,0.318625,94154.0,94096.0,0.2833212]
[1732108924952,0.01,94162.0,94096.0,0.2833212]
[1732108924953,0.01,94148.0,94114.0,0.1]
[1732108925183,0.222401,94162.0,94066.0,0.151333]
[1732108925184,0.01,94139.0,94095.0,0.1]
[1732108925450,0.42492,94135.0,94115.0,0.106252]
[1732108925673,0.10711512,94138.0,94104.0,0.106264]
[1732108925674,0.106243,94124.0,94104.0,0.106264]
[1732108925895,0.10711512,94134.0,94094.0,0.106276]
[1732108926121,0.222457,94137.0,94125.0,0.106241]
[1732108926348,0.106235,94131.0,94125.0,0.106241]
[1732108926569,0.21246,94135.0,94127.0,0.106238]
[1732108926790,0.21246,94135.0,94120.0,0.106247]
[1732108926791,0.106236,94130.0,94120.0,0.106247]
[1732108927000,0.106236,94130.0,94111.0,0.106256]
[1732108927001,0.106238,94128.0,94122.0,0.106244]
[1732108927218,0.10624,94126.0,94121.0,0.106245]
[1732108927432,0.106236,94130.0,94124.0,0.106242]
[1732108927646,0.11711512,94137.0,94124.0,0.106242]
[1732108927855,0.11711512,94137.0,94114.0,0.0781]
[1732108927856,0.106241,94125.0,94120.0,0.106247]
[1732108928062,0.212485,94125.0,94116.0,0.106251]
[1732108928276,0.01,94131.0,94106.0,0.0461]
[1732108928277,0.10711512,94124.0,94106.0,0.0461]
[1732108928550,0.106246,94121.0,94106.0,0.0461]
[1732108928782,0.01,94123.0,94090.0,0.152381]
[1732108928783,0.01,94111.0,94090.0,0.152381]
[1732108929001,0.01,94115.0,94090.0,0.152381]
[1732108929002,0.106269,94101.0,94094.0,0.106275]
[1732108929232,0.10628,94091.0,94085.0,0.0813]
[1732108929452,0.10628,94091.0,94084.0,0.1079986]
[1732108929453,0.106283,94088.0,94084.0,0.0017116]
[1732108929666,0.11711512,94096.0,94086.0,0.106285]
[1732108929885,0.106277,94094.0,94086.0,0.106285]
[1732108930104,0.106272,94098.0,94091.0,0.106279]
[1732108930329,0.106272,94098.0,94086.0,0.106285]
[1732108930541,0.106278,94093.0,94087.0,0.106284]
[1732108930761,0.106288,94084.0,94075.0,0.0454]
[1732108930973,0.01,94090.0,94075.0,0.0454]
[1732108931200,0.10629,94082.0,94075.0,0.151697]
[1732108931428,0.10629,94082.0,94067.0,0.0813]
[1732108931429,0.11711512,94082.0,94067.0,0.0813]
[1732108931925,0.212584,94081.0,94068.0,0.106306]
[1732108932135,0.212584,94081.0,94065.0,0.106308]
[1732108932136,0.106303,94071.0,94065.0,0.106308]
[1732108932374,0.01,94076.0,94059.0,0.0462]
[1732108932583,0.1,94080.0,94052.0,0.083]
[1732108932584,0.116307,94067.0,94052.0,0.083]
[1732108932798,0.22342212,94067.0,94054.0,0.106321]
[1732108933006,0.21342212,94067.0,94054.0,0.106321]
[1732108933221,0.22342212,94067.0,94052.0,0.189324]
[1732108933433,0.22342212,94067.0,94058.0,0.106317]
[1732108933656,0.22342212,94067.0,94052.0,0.083]
[1732108934117,0.38364594,94067.0,94066.0,0.00925249]
[1732108934358,0.35642212,94067.0,94066.0,0.00925249]
[1732108934819,0.01,94060.0,94049.0,0.106326]
[1732108935036,0.212667,94044.0,94021.0,0.0813]
[1732108935258,0.106339,94039.0,94032.0,0.106346]
[1732108935468,0.106339,94039.0,94021.0,0.0813]
[1732108935469,0.01,94034.0,94022.0,0.106357]
[1732108935706,0.2846724,94034.0,94022.0,0.106357]
[1732108935931,0.23345912,94034.0,94024.0,0.106355]
[1732108936204,0.23345912,94034.0,94004.0,0.0808]
[1732108936205,0.25315027,94034.0,94012.0,0.106368]
[1732108936429,0.106373,94008.0,94007.0,0.036505]
[1732108936640,0.2833212,94009.0,93989.0,0.0808]
[1732108936848,0.01,94010.0,93999.0,0.106383]
[1732108936849,0.02,94010.0,93999.0,0.106383]
[1732108937065,0.02,94010.0,94006.0,0.106375]
[1732108937299,0.01,94017.0,94006.0,0.106375]
[1732108937556,0.04390391,94010.0,94001.0,0.00466313]
[1732108937782,0.01,94020.0,94001.0,0.00466313]
[1732108937997,0.1,94026.0,94001.0,0.00466313]
[1732108937998,0.01,94008.0,94001.0,0.00466313]
[1732108938235,0.01,94008.0,94000.0,0.31720655]
[1732108938236,0.023,94006.0,94000.0,0.31720655]
[1732108938463,0.023,94006.0,94002.0,0.10638]
[1732108938686,0.14951435,94008.0,94000.0,0.31720655]
[1732108938687,0.21275,94007.0,94000.0,0.31720655]
[1732108938972,0.14951435,94008.0,94000.0,0.42358855]
[1732108939181,0.04239923,94008.0,94000.0,0.42358855]
[1732108939436,0.04239923,94008.0,94005.0,0.106376]
[1732108939676,0.01,94013.0,94000.0,0.42358855]
[1732108939927,0.106373,94009.0,94001.0,0.10638]
[1732108940220,0.01,94013.0,94004.0,0.106377]
[1732108940448,0.10637,94011.0,94004.0,0.106378]
[1732108940677,0.01,94013.0,94006.0,0.0005]
[1732108940924,0.01,94021.0,94006.0,0.0005]
[1732108941155,0.04284354,94015.0,94013.0,0.106367]
[1732108941408,0.1,94023.0,94012.0,0.106368]
[1732108941409,0.106362,94019.0,94012.0,0.106368]
[1732108941629,0.1,94023.0,94006.0,0.0005]
[1732108941630,0.16073463,94018.0,94006.0,0.0005]
[1732108941859,0.10711512,94018.0,94006.0,0.0005]
[1732108942085,0.10711512,94018.0,94009.0,0.106372]
[1732108942306,0.04328785,94030.0,94006.0,0.0005]
[1732108942307,0.01,94009.0,94006.0,0.0005]
[1732108942524,0.106375,94007.0,94006.0,0.0005]
[1732108942994,0.21349012,94007.0,94006.0,0.0005]
[1732108943199,0.23649012,94007.0,94006.0,0.0005]
[1732108943637,0.34649012,94007.0,94006.0,0.0005]
[1732108944093,0.40241363,94007.0,94006.0,0.0005]
[1732108944312,0.34649012,94007.0,94006.0,0.0005]
[1732108946718,0.34649012,94007.0,94006.0,0.00039264]
[1732108946928,0.01,94029.0,94019.0,0.10636]
[1732108947189,0.106359,94021.0,94016.0,0.106364]
[1732108947397,0.106359,94021.0,94006.0,0.00039264]
[1732108947398,0.01,94029.0,94006.0,0.00039264]
[1732108947604,0.106353,94026.0,94019.0,0.10636]
[1732108947815,0.01,94029.0,94019.0,0.10636]
[1732108947816,0.106354,94025.0,94019.0,0.10636]
[1732108948055,0.01,94036.0,94006.0,0.00039264]
[1732108948281,0.04240921,94047.0,94015.0,0.01]
[1732108948502,0.04240921,94047.0,94038.0,0.106339]
[1732108948720,0.222638,94057.0,94037.0,0.0807]
[1732108948721,0.01,94057.0,94037.0,0.0807]
[1732108948946,0.01,94057.0,94051.0,0.106324]
[1732108949176,0.212632,94059.0,94050.0,0.106326]
[1732108949457,0.212632,94059.0,94037.0,0.0807]
[1732108949458,0.212621,94064.0,94038.0,0.10711512]
[1732108949663,0.04354251,94065.0,94038.0,0.10711512]
[1732108949664,0.04354251,94065.0,94060.0,0.106314]
[1732108949880,0.01,94064.0,94055.0,0.106319]
[1732108950099,0.01,94064.0,93956.0,0.05316115]
[1732108950100,0.01,94036.0,94020.0,0.1255]
[1732108950530,0.01,94036.0,94030.0,0.106348]
[1732108950783,0.01,94036.0,94026.0,0.106352]
[1732108950989,0.2833212,94056.0,94020.0,0.1255]
[1732108950990,0.1,94046.0,94020.0,0.1255]
[1732108951208,0.212627,94062.0,94020.0,0.1255]
[1732108951209,0.01,94052.0,94021.0,0.10711512]
[1732108951439,0.106318,94058.0,94051.0,0.106325]
[1732108951654,0.212614,94067.0,94035.0,0.01]
[1732108951859,0.212614,94067.0,94022.0,0.1]
[1732108951860,0.01,94068.0,94038.0,0.01]
[1732108952151,0.106308,94066.0,94039.0,0.10711512]
[1732108952397,0.116305,94069.0,94061.0,0.106313]
[1732108952638,0.106307,94067.0,94059.0,0.106315]
[1732108952873,0.10711512,94078.0,94042.0,0.106335]
[1732108953093,0.1,94074.0,94043.0,0.21344912]
[1732108953311,0.25621582,94079.0,94043.0,0.21344912]
[1732108953312,0.04362882,94079.0,94050.0,0.0579]
[1732108953554,0.01,94112.0,94061.0,0.106313]
[1732108953555,0.212554,94094.0,94061.0,0.106313]
[1732108953799,0.2933212,94114.0,94061.0,0.106313]
[1732108953800,0.04411646,94090.0,94089.0,0.106282]
[1732108954037,0.10711512,94111.0,94064.0,0.0771]
[1732108954038,0.212547,94097.0,94086.0,0.106284]
[1732108954268,0.106291,94082.0,94074.0,0.106298]
[1732108954497,0.10711512,94096.0,94083.0,0.106288]
[1732108954709,0.10711512,94096.0,94068.0,0.116936]
[1732108954927,0.10711512,94096.0,94065.0,0.10711512]
[1732108955164,0.10711512,94096.0,94077.0,0.106295]
[1732108955379,0.10711512,94096.0,94065.0,0.10711512]
[1732108955605,0.212551,94095.0,94077.0,0.106295]
[1732108955816,0.212569,94088.0,94076.0,0.106296]
[1732108956096,0.212553,94094.0,94081.0,0.10629]
[1732108956306,0.10626,94108.0,94100.0,0.106269]
[1732108956518,0.10711512,94124.0,94098.0,0.106272]
[1732108956743,0.10711512,94124.0,94082.0,0.10711512]
[1732108956744,0.10711512,94124.0,94084.0,0.116916]
[1732108956974,0.212489,94123.0,94109.0,0.116885]
[1732108957222,0.0779,94144.0,94098.0,0.0455]
[1732108957223,0.10711512,94122.0,94098.0,0.0455]
[1732108957467,0.2833212,94137.0,94098.0,0.0455]
[1732108957468,0.02,94115.0,94099.0,0.116898]
[1732108957696,0.02,94115.0,94106.0,0.106262]
[1732108957946,0.212508,94114.0,94102.0,0.116893]
[1732108958189,0.212508,94114.0,94098.0,0.0455]
[1732108958190,0.02,94115.0,94098.0,0.0455]
[1732108958422,0.02,94115.0,94114.0,0.106254]
[1732108958644,0.02,94115.0,94099.0,0.10711512]
[1732108958645,0.02,94115.0,94110.0,0.106257]
[1732108958867,0.212508,94114.0,94098.0,0.0455]
[1732108959083,0.02,94115.0,94098.0,0.0455]
[1732108959326,0.02,94115.0,94100.0,0.116896]
[1732108959580,0.106254,94114.0,94105.0,0.106263]
[1732108959795,0.02,94115.0,94098.0,0.0455]
[1732108960062,0.02,94115.0,94114.0,0.106254]
[1732108960773,0.02,94115.0,94114.0,0.185354]
[1732108963076,0.02,94115.0,94114.0,0.0791]
[1732108963329,0.02,94115.0,94100.0,0.0767]
[1732108963773,0.02,94115.0,94105.0,0.106264]
[1732108963774,0.212508,94114.0,94105.0,0.106264]
[1732108964020,0.106262,94107.0,94102.0,0.106267]
[1732108964230,0.02,94115.0,94098.0,0.116899]
[1732108964450,0.02,94115.0,94098.0,0.106271]
[1732108964668,0.106265,94105.0,94098.0,0.106271]
[1732108964897,0.02,94115.0,94092.0,0.106278]
[1732108964898,0.106268,94101.0,94092.0,0.106278]
[1732108965141,0.02,94115.0,94093.0,0.106277]
[1732108965142,0.21251,94113.0,94093.0,0.106277]
[1732108965354,0.02,94115.0,94086.0,0.0828]
[1732108965355,0.02,94115.0,94107.0,0.106261]
[1732108965600,0.02,94115.0,94087.0,0.10711512]
[1732108965854,0.02,94115.0,94093.0,0.106276]
[1732108965855,0.212531,94104.0,94093.0,0.106276]
[1732108966071,0.212531,94104.0,94086.0,0.0828]
[1732108966072,0.106259,94110.0,94086.0,0.0828]
[1732108966329,0.1116,94113.0,94086.0,0.0828]
[1732108966580,0.106265,94105.0,94098.0,0.106271]
[1732108966798,0.21253,94105.0,94092.0,0.106278]
[1732108967039,0.0208581,94115.0,94082.0,0.106289]
[1732108967040,0.106281,94091.0,94082.0,0.106289]
[1732108967286,0.10711512,94104.0,94079.0,0.106292]
[1732108967287,0.106286,94086.0,94079.0,0.106292]
[1732108967509,0.1,94103.0,94072.0,0.0789]
[1732108967510,0.023,94102.0,94080.0,0.106291]
[1732108967758,0.023,94102.0,94074.0,0.106299]
[1732108967759,0.000111,94080.0,94079.0,0.106293]
[1732108967982,0.023,94100.0,94072.0,0.0789]
[1732108968219,0.106279,94092.0,94072.0,0.0789]
[1732108968450,0.1,94098.0,94072.0,0.0789]
[1732108968697,0.20711512,94098.0,94072.0,0.0789]
[1732108968966,0.023,94100.0,94036.0,0.106341]
[1732108968967,0.106331,94046.0,94036.0,0.106341]
[1732108969226,0.1,94071.0,94025.0,0.0792]
[1732108969227,0.1,94071.0,94039.0,0.10883132]
[1732108969462,0.1,94063.0,94039.0,0.0017162]
[1732108969728,0.106329,94048.0,94039.0,0.0017162]
[1732108969946,0.023,94059.0,94039.0,0.0017162]
[1732108970159,0.1,94060.0,94039.0,0.0017162]
[1732108970160,0.1,94055.0,94039.0,0.0017162]
[1732108970433,0.10711512,94054.0,94039.0,0.0017162]
[1732108971128,0.10711512,94054.0,94039.0,0.1080542]
[1732108971129,0.023,94051.0,94039.0,0.1080542]
[1732108971356,0.04207509,94055.0,94040.0,0.106337]
[1732108971609,0.04207509,94055.0,94039.0,0.0017162]
[1732108971610,0.106326,94051.0,94042.0,0.106335]
[1732108971878,0.00058736,94040.0,94039.0,0.1080532]
[1732108973229,0.00058736,94040.0,94039.0,0.0017162]
[1732108973462,0.10692436,94040.0,94039.0,0.0017162]
[1732108973690,0.00058736,94040.0,94036.0,0.106341]
[1732108973939,0.00058736,94040.0,94039.0,0.106338]
[1732108974881,0.03909791,94050.0,94049.0,0.106327]
[1732108975099,0.1,94059.0,94037.0,0.10711512]
[1732108975313,0.04220823,94059.0,94038.0,0.10711512]
[1732108975561,0.212634,94058.0,94049.0,0.106327]
[1732108975775,0.10632,94055.0,94050.0,0.106326]
[1732108975994,0.21263,94060.0,94050.0,0.106326]
[1732108976223,0.04369641,94063.0,94052.0,0.106323]
[1732108976476,0.106315,94060.0,94054.0,0.106321]
[1732108976701,0.023,94076.0,94050.0,0.106325]
[1732108977026,0.04312702,94081.0,94075.0,0.106297]
[1732108977236,0.04312702,94081.0,94052.0,0.106324]
[1732108977237,0.04312702,94081.0,94064.0,0.106309]
[1732108977449,0.212578,94084.0,94072.0,0.1063]
[1732108977712,0.10711512,94084.0,94072.0,0.1063]
[1732108977937,0.2833212,94104.0,94075.0,0.106297]
[1732108978173,0.106288,94084.0,94077.0,0.106295]
[1732108978636,0.0008581,94069.0,94066.0,0.106308]
[1732108978846,0.0008581,94069.0,94043.0,0.01]
[1732108978847,0.0008581,94069.0,94068.0,0.106306]
[1732108979304,0.2833212,94068.0,94039.0,0.0017162]
[1732108979565,0.212659,94047.0,94039.0,0.0017162]
[1732108979773,0.212645,94054.0,94039.0,0.0017162]
[1732108979991,0.106323,94053.0,94040.0,0.106337]
[1732108980205,0.0751,94066.0,94039.0,0.0017162]
[1732108980206,0.10711512,94052.0,94039.0,0.0017162]
[1732108980469,0.212656,94049.0,94039.0,0.0017162]
[1732108980682,0.212659,94047.0,94039.0,0.0017162]
[1732108980931,0.106336,94042.0,94039.0,0.0017162]
[1732108981135,0.212661,94046.0,94039.0,0.0017162]
[1732108981360,0.2833212,94064.0,94039.0,0.0017162]
[1732108981629,0.106337,94040.0,94039.0,0.0017162]
[1732108981837,0.023,94060.0,94039.0,0.0017162]
[1732108982078,0.10711512,94059.0,94039.0,0.0017162]
[1732108982296,0.023,94058.0,94039.0,0.0017162]
[1732108982559,0.1,94063.0,94039.0,0.0017162]
[1732108982825,0.04460627,94069.0,94042.0,0.01]
[1732108983021,0.07600627,94095.0,94043.0,0.23521512]
[1732108983237,0.07600627,94095.0,94044.0,0.106333]
[1732108983238,0.01,94090.0,94044.0,0.106333]
[1732108983568,0.10711512,94089.0,94070.0,0.106302]
[1732108983778,0.10711512,94089.0,94045.0,0.10711512]
[1732108983779,0.212566,94088.0,94048.0,0.106328]
[1732108984007,0.04234022,94095.0,94084.0,0.106287]
[1732108984229,0.10711512,94094.0,94078.0,0.106294]
[1732108984447,0.212555,94093.0,94077.0,0.106294]
[1732108984678,0.10711512,94094.0,94059.0,0.01]
[1732108984924,0.5,94100.0,94059.0,0.01]
[1732108984925,0.10711512,94093.0,94060.0,0.21343012]
[1732108985152,0.106287,94085.0,94060.0,0.10711512]
[1732108985369,0.10711512,94093.0,94058.0,0.01]
[1732108985602,0.002,94112.0,94059.0,0.10711512]
[1732108985603,0.1116,94112.0,94059.0,0.10711512]
[1732108985812,0.10711512,94099.0,94061.0,0.106313]
[1732108986027,0.10711512,94099.0,94058.0,0.01]
[1732108986028,0.1,94097.0,94078.0,0.106294]
[1732108986259,0.212537,94101.0,94071.0,0.0454]
[1732108986478,0.212529,94105.0,94095.0,0.106274]
[1732108986925,0.212509,94114.0,94099.0,0.106271]
[1732108987191,0.5,94100.0,94099.0,0.106271]
[1732108988403,0.5,94100.0,94099.0,0.26958612]
[1732108988624,0.5,94100.0,94099.0,0.27958612]
[1732108989096,0.106227,94138.0,94114.0,0.106254]
[1732108989350,0.04272604,94126.0,94114.0,0.21336912]
[1732108989818,0.212437,94146.0,94114.0,0.21336912]
[1732108990089,0.424913,94137.0,94114.0,0.106254]
[1732108990295,0.04240703,94133.0,94114.0,0.21336912]
[1732108991701,0.1,94143.0,94114.0,0.21336912]
[1732108992165,0.10623,94135.0,94114.0,0.21336912]
[1732108992418,0.04385551,94140.0,94114.0,0.21336912]
[1732108992419,0.106228,94137.0,94114.0,0.21336912]
[1732108992665,0.04385551,94140.0,94114.0,0.21336912]
[1732108992888,0.15008051,94140.0,94114.0,0.21336912]
[1732108993096,0.106227,94138.0,94114.0,0.21336912]
[1732108993321,0.04385551,94140.0,94114.0,0.21336912]
[1732108993322,0.15008051,94140.0,94114.0,0.21336912]
[1732108993529,0.106229,94136.0,94114.0,0.21336912]
[1732108993744,0.106228,94137.0,94114.0,0.21336912]
[1732108993958,0.106232,94134.0,94114.0,0.21336912]
[1732108994171,0.212449,94141.0,94114.0,0.21336912]
[1732108994389,0.106227,94138.0,94114.0,0.21336912]
[1732108994616,0.106228,94137.0,94114.0,0.21336912]
[1732108995076,0.04354648,94133.0,94114.0,0.21336912]
[1732108995299,0.1,94145.0,94114.0,0.21336912]
[1732108995504,0.1,94147.0,94114.0,0.21336912]
[1732108995771,0.04317156,94136.0,94114.0,0.21336912]
[1732108995994,0.106231,94135.0,94114.0,0.21336912]
[1732108996245,0.04317156,94136.0,94114.0,0.21336912]
[1732108996901,0.04317156,94136.0,94114.0,0.106254]
[1732108997125,0.106238,94128.0,94114.0,0.106254]
[1732108997369,0.01965415,94135.0,94114.0,0.106254]
[1732108997579,0.01965415,94134.0,94114.0,0.106254]
[1732108997841,0.03148191,94173.0,94135.0,0.01]
[1732108998058,0.03148191,94173.0,94105.0,0.01]
[1732108998059,0.03148191,94173.0,94152.0,0.01107]
[1732108998536,0.03148191,94173.0,94160.0,0.106201]
[1732108998537,0.212376,94173.0,94160.0,0.106201]
[1732108998803,0.04221057,94174.0,94159.0,0.106202]
[1732108998994,0.04221057,94174.0,94152.0,0.01107]
[1732108998995,0.04221057,94174.0,94154.0,0.106208]
[1732108999214,0.04221057,94174.0,94152.0,0.01107]